fUSD/lending_fUSD_20240515
["ID","MTS","AMOUNT","RATE_DAILY","PERIOD"]
[327082061,1715795444260,-2359.1213022,0.00011989,2]
[327082062,1715795444269,-2314.0250367,0.00011989,2]
[327082063,1715795444278,-2268.9287713,0.00011989,2]
[327082064,1715795444287,-2223.8325058,0.00011989,2]
[327082065,1715795444296,-2178.7362403,0.00011989,2]
[327082066,1715795444305,-1100.9862024,0.00011989,2]
[327082067,1715795444316,-1080.3348409,0.00011989,2]
[327082068,1715795444325,-1059.6834794,0.00011989,2]
[327082069,1715795444335,-1039.032118,0.00011989,2]
[327082070,1715795444345,-1018.3807565,0.00011989,2]
[327082071,1715795444354,-997.729395,0.00011989,2]
[327082072,1715795444363,-500.0,0.00011989,2]
[327082073,1715795444372,-449.17,0.00011989,2]
[327082074,1715795444382,-834.77,0.00011989,2]
[327082075,1715795444391,-834.77,0.00011989,2]
[327082076,1715795444401,-834.77,0.00011989,2]
[327082077,1715795444410,-500.0,0.00011989,2]
[327082078,1715795444419,-500.0,0.00011989,2]
[327082079,1715795444428,-500.0,0.00011989,2]
[327082080,1715795444438,-500.0,0.00011989,2]
[327082081,1715795444447,-500.0,0.00011989,2]
[327082082,1715795444456,-500.0,0.00011989,2]
[327082083,1715795444465,-500.0,0.00011989,2]
[327082084,1715795444475,-500.0,0.00011989,2]
[327082085,1715795444484,-500.0,0.00011989,2]
[327082086,1715795444495,-500.0,0.00011989,2]
[327082087,1715795444504,-246.33551186,0.00011989,2]
[327082088,1715795444514,-1648.77,0.00011989,2]
[327082089,1715795444523,-1648.77,0.00011989,2]
[327082090,1715795444533,-1693.2,0.00011989,2]
[327082091,1715795444542,-1693.2,0.00011989,2]
[327082092,1715795444552,-500.0,0.00011989,2]
[327082093,1715795444562,-500.0,0.00011989,2]
[327082094,1715795444572,-500.0,0.00011989,2]
[327082095,1715795444582,-500.0,0.00011989,2]
[327082096,1715795444592,-405079.30110218,0.0001199,2]
[327082097,1715795444602,-434807.09334905,0.0001199,6]
[327082098,1715795444612,-125859.25219725,0.0001199,6]
[327082099,1715795444622,-4152.23809392,0.0001199,2]
[327082100,1715795444632,-379.07553815,0.00011997,2]
[327082101,1715795444645,-285.8998525,0.00011997,2]
[327082102,1715795444656,-500.0,0.00011997,2]
[327082103,1715795444666,-945.10460685,0.00011998,2]
[327082104,1715795444675,-1399.66,0.00011998,2]
[327082105,1715795444685,-500.0,0.00011998,2]
[327082106,1715795444694,-500.0,0.00011998,2]
[327082107,1715795444704,-500.0,0.00011998,2]
[327082108,1715795444714,-186.96,0.00011998,2]
[327082109,1715795444726,-500.0,0.00011998,2]
[327082110,1715795444736,-500.0,0.00011998,2]
[327082111,1715795444746,-1101.6,0.00011998,2]
[327082112,1715795444755,-500.0,0.00011998,2]
[327082113,1715795444764,-500.0,0.00011998,2]
[327082114,1715795444773,-2515.69,0.00011998,2]
[327082115,1715795444783,-500.0,0.00011998,2]
[327082116,1715795444792,-500.0,0.00011998,2]
[327082117,1715795444801,-834.77,0.00011998,2]
[327082118,1715795444810,-500.0,0.00011998,2]
[327082119,1715795444820,-500.0,0.00011998,2]
[327082120,1715795444829,-500.0,0.00011998,2]
[327082121,1715795444838,-500.0,0.00011998,2]
[327082122,1715795444847,-1648.77,0.00011998,2]
[327082123,1715795444856,-1648.77,0.00011998,2]
[327082124,1715795444865,-1648.77,0.00011998,2]
[327082125,1715795444875,-1693.2,0.00011998,2]
[327082126,1715795444884,-1693.2,0.00011998,2]
[327082127,1715795444893,-1693.2,0.00011998,2]
[327082128,1715795444903,-537.48,0.00011998,2]
[327082129,1715795444913,-1399.66,0.00011999,2]
[327082130,1715795444922,-1399.66,0.00011999,2]
[327082131,1715795444931,-1399.66,0.00011999,2]
[327082132,1715795444940,-1399.66,0.00011999,2]
[327082133,1715795444949,-1399.66,0.00011999,2]
[327082134,1715795444958,-1399.66,0.00011999,2]
[327082135,1715795444967,-1399.66,0.00011999,2]
[327082136,1715795444976,-1399.66,0.00011999,2]
[327082137,1715795444987,-1399.66,0.00011999,2]
[327082138,1715795444995,-1399.66,0.00011999,2]
[327082139,1715795445004,-1399.66,0.00011999,2]
[327082140,1715795445013,-1399.66,0.00011999,2]
[327082141,1715795445022,-1399.66,0.00011999,2]
[327082142,1715795445031,-1399.66,0.00011999,2]
[327082143,1715795445041,-1399.66,0.00011999,2]
[327082144,1715795445050,-1399.66,0.00011999,2]
[327082145,1715795445059,-1399.66,0.00011999,2]
[327082146,1715795445069,-1399.87281186,0.00011999,2]
[327082147,1715795445078,-151.56324146,0.00011999,2]
[327082148,1715795445087,-464.3009172,0.00011999,2]
[327082149,1715795445097,-500.0,0.00011999,2]
[327082150,1715795445106,-500.0,0.00011999,2]
[327082151,1715795445115,-500.0,0.00011999,2]
[327082152,1715795445124,-1101.6,0.00011999,2]
[327082153,1715795445134,-1101.6,0.00011999,2]
[327082154,1715795445143,-1101.6,0.00011999,2]
[327082155,1715795445152,-1101.6,0.00011999,2]
[327082156,1715795445162,-1101.6,0.00011999,2]
[327082157,1715795445171,-1101.6,0.00011999,2]
[327082158,1715795445180,-1101.6,0.00011999,2]
[327082159,1715795445189,-1101.6,0.00011999,2]
[327082160,1715795445199,-1101.6,0.00011999,2]
[327082161,1715795445208,-1101.6,0.00011999,2]
[327082162,1715795445217,-1101.6,0.00011999,2]
[327082163,1715795445226,-1101.6,0.00011999,2]
[327082164,1715795445236,-1101.6,0.00011999,2]
[327082165,1715795445246,-1101.6,0.00011999,2]
[327082166,1715795445255,-1101.6,0.00011999,2]
[327082167,1715795445265,-1101.6,0.00011999,2]
[327082168,1715795445274,-1101.6,0.00011999,2]
[327082169,1715795445283,-1101.74225806,0.00011999,2]
[327082170,1715795445293,-500.0,0.00011999,2]
[327082171,1715795445302,-500.0,0.00011999,2]
[327082172,1715795445311,-500.0,0.00011999,2]
[327082173,1715795445320,-558.05909295,0.00011999,2]
[327082174,1715795445330,-3469.14,0.00011999,2]
[327082175,1715795445339,-500.0,0.00011999,2]
[327082176,1715795445348,-500.0,0.00011999,2]
[327082177,1715795445358,-500.0,0.00011999,2]
[327082178,1715795445367,-500.0,0.00011999,2]
[327082179,1715795445377,-500.0,0.00011999,2]
[327082180,1715795445386,-500.0,0.00011999,2]
[327082181,1715795445396,-500.0,0.00011999,2]
[327082182,1715795445405,-500.0,0.00011999,2]
[327082184,1715795445414,-500.0,0.00011999,2]
[327082185,1715795445423,-527.90615486,0.00011999,2]
[327082186,1715795445433,-2515.69,0.00011999,2]
[327082187,1715795445443,-2515.69,0.00011999,2]
[327082188,1715795445452,-2515.69,0.00011999,2]
[327082189,1715795445462,-2515.69,0.00011999,2]
[327082190,1715795445471,-2515.69,0.00011999,2]
[327082191,1715795445480,-2515.69,0.00011999,2]
[327082192,1715795445491,-2515.69,0.00011999,2]
[327082193,1715795445500,-2515.69,0.00011999,2]
[327082195,1715795445509,-2515.69,0.00011999,2]
[327082196,1715795445518,-2515.69,0.00011999,2]
[327082197,1715795445527,-2515.83749401,0.00011999,2]
[327082198,1715795445536,-500.0,0.00011999,2]
[327082199,1715795445545,-548.97128521,0.00011999,2]
[327082200,1715795445554,-834.77,0.00011999,2]
[327082201,1715795445563,-834.77,0.00011999,2]
[327082202,1715795445573,-834.77,0.00011999,2]
[327082203,1715795445582,-834.77,0.00011999,2]
[327082204,1715795445591,-834.77,0.00011999,2]
[327082205,1715795445600,-834.77,0.00011999,2]
[327082206,1715795445610,-834.77,0.00011999,2]
[327082208,1715795445620,-834.77,0.00011999,2]
[327082209,1715795445629,-834.77,0.00011999,2]
[327082210,1715795445638,-834.77,0.00011999,2]
[327082211,1715795445651,-834.90734568,0.00011999,2]
[327082212,1715795445660,-500.0,0.00011999,2]
[327082213,1715795445669,-401.2,0.00011999,2]
[327082214,1715795445678,-500.0,0.00011999,2]
[327082215,1715795445688,-500.0,0.00011999,2]
[327082216,1715795445698,-500.0,0.00011999,2]
[327082217,1715795445707,-364.13,0.00011999,2]
[327082218,1715795445716,-543.92,0.00011999,2]
[327082219,1715795445728,-1648.77,0.00011999,2]
[327082220,1715795445739,-1648.77,0.00011999,2]
[327082221,1715795445748,-1648.77,0.00011999,2]
[327082222,1715795445757,-1648.77,0.00011999,2]
[327082223,1715795445767,-1648.77,0.00011999,2]
[327082224,1715795445776,-1648.77,0.00011999,2]
[327082225,1715795445786,-1648.77,0.00011999,2]
[327082226,1715795445795,-1648.77,0.00011999,2]
[327082227,1715795445937,-1648.87,0.00011999,2]
[327082228,1715795445947,-1693.2,0.00011999,2]
[327082229,1715795445956,-1693.2,0.00011999,2]
[327082230,1715795445966,-1693.2,0.00011999,2]
[327082231,1715795445975,-1693.2,0.00011999,2]
[327082232,1715795445985,-1693.2,0.00011999,2]
[327082233,1715795445994,-1693.2,0.00011999,2]
[327082234,1715795446004,-1693.2,0.00011999,2]
[327082235,1715795446013,-1693.2,0.00011999,2]
[327082236,1715795446022,-1693.25,0.00011999,2]
[327082237,1715795446032,-2622551.31941121,0.00012,2]
[327082238,1715795446041,-409.94933149,0.00012,2]
[327082239,1715795446052,-3449150.98,0.00012,2]
[327082240,1715795446066,-3000.0,0.00012,2]
[327082241,1715795446075,-1000.0,0.00012,2]
[327082242,1715795446085,-1000.0,0.00012,2]
[327082243,1715795446094,-155.29223935,0.00012,2]
[327082244,1715795446103,-19623.11442373,0.00012,2]
[327082245,1715795446112,-760657.21279223,0.00012,2]
[327082246,1715795446138,-451.753598,0.00011894,2]
[327082247,1715795446147,-242.51267662,0.00012,2]
[327082248,1715795446159,-590.52212235,0.00012,2]
[327082249,1715795446170,-23260.74148,0.00012,2]
[327082250,1715795446182,-1605.63397023,0.00012,2]
[327082251,1715795446291,-451.753598,0.0001187,2]
[327082252,1715795446300,-451.753598,0.00011889,2]
[327082253,1715795446309,-451.753598,0.00011899,2]
[327082254,1715795446319,-451.753598,0.00011899,2]
[327082255,1715795446328,-451.753598,0.000119,2]
[327082256,1715795446338,-451.753598,0.000119,2]
[327082257,1715795446348,-451.753598,0.0001191,2]
[327082258,1715795446357,-1339.12500132,0.00011981,2]
[327082259,1715795446366,-3638.5998133,0.00012,2]
[327082260,1715795446386,-451.753598,0.0001189,2]
[327082261,1715795446396,-289.01374768,0.00012,2]
[327082262,1715795446417,-451.753598,0.00011894,2]
[327082263,1715795446427,-2150.0323366,0.00012,2]
[327082264,1715795446542,-451.753598,0.00011894,2]
[327082265,1715795446552,-451.753598,0.00011899,2]
[327082266,1715795446561,-451.753598,0.00011899,2]
[327082267,1715795446571,-451.753598,0.000119,2]
[327082268,1715795446580,-451.753598,0.000119,2]
[327082269,1715795446589,-451.753593,0.0001191,2]
[327082270,1715795446598,-436.39738179,0.0001198,2]
[327082271,1715795446609,-613.54464,0.0001198,2]
[327082272,1715795447244,-325.395,0.0001198,2]
[327082279,1715796033249,155.46,8.872e-05,2]
[327082285,1715796314959,-155.0,0.00010406,2]
[327082286,1715796314983,-204.78018268,0.00010407,2]
[327082287,1715796315006,-401.86960459,0.00010408,2]
[327082288,1715796315248,-277.28,0.00010411,2]
[327082289,1715796315272,-250.0,0.00010643,2]
[327082290,1715796315297,-2711.07021273,0.00010703,2]
[327082291,1715796315934,-4000.0,0.00010703,2]
[327082292,1715796323293,-2078.3812,0.00010703,2]
[327082293,1715796364931,-4000.0,0.00010703,2]
[327082294,1715796365475,-4000.0,0.00010703,2]
[327082295,1715796372076,-255.57,0.00010703,2]
[327082302,1715796510519,155.46,8.78e-05,2]
[327082312,1715796632035,-204.78018268,0.00010502,2]
[327082313,1715796632046,-83.09627781,0.00010603,2]
[327082314,1715796632058,-85.2771168,0.00010603,2]
[327082315,1715796632068,-161.10137834,0.00010603,2]
[327082316,1715796632080,-169.18944,0.00010603,7]
[327082317,1715796632090,-528.28,0.0001065,2]
[327082318,1715796632102,-6844.97858727,0.00010703,2]
[327082319,1715796632111,-548.53577545,0.00010703,2]
[327082320,1715796632121,-298.75742106,0.00010703,2]
[327082321,1715796632130,-480.0,0.00010735,2]
[327082322,1715796632140,-179.24,0.00010836,2]
[327082323,1715796632149,-151.78,0.00010847,2]
[327082324,1715796632158,-520.0,0.000109,2]
[327082325,1715796632170,-1003.81,0.00011,2]
[327082326,1715796632179,-499.99,0.00011,2]
[327082327,1715796632189,-150.99,0.00011006,2]
[327082328,1715796632200,-7346.89741286,0.00011367,2]
[327082329,1715796632210,-165.520286,0.00011456,2]
[327082330,1715796632219,-189.756364,0.00011456,2]
[327082331,1715796632229,-9389.054855,0.00011456,2]
[327082333,1715796632238,-1312.287751,0.00011456,2]
[327082335,1715796632248,-196.920011,0.00011456,2]
[327082337,1715796632260,-1314.898262,0.00011456,2]
[327082338,1715796632269,-165.520286,0.00011456,2]
[327082340,1715796632278,-1300.151164,0.00011456,2]
[327082342,1715796632288,-6630.636577,0.00011456,2]
[327082343,1715796632297,-482.72891,0.00011456,2]
[327082344,1715796632307,-9389.054855,0.00011599,2]
[327082345,1715796632316,-1312.287751,0.00011599,2]
[327082346,1715796632325,-1314.898262,0.00011599,2]
[327082347,1715796632336,-1300.151164,0.00011599,2]
[327082348,1715796632345,-6630.636577,0.00011599,2]
[327082349,1715796632355,-482.72891,0.00011599,2]
[327082350,1715796632365,-200.0,0.000116,4]
[327082351,1715796632375,-1261.0,0.00011675,2]
[327082352,1715796632385,-1672.918,0.00011675,2]
[327082353,1715796632395,-1226.0,0.00011675,2]
[327082354,1715796632404,-649.731,0.00011675,2]
[327082355,1715796632413,-609.0,0.00011675,2]
[327082356,1715796632423,-807.0,0.00011675,2]
[327082357,1715796632432,-164.0,0.00011675,2]
[327082358,1715796632441,-422.0,0.00011675,2]
[327082359,1715796632450,-219.43376273,0.00011675,2]
[327082360,1715796632560,-219.56623727,0.00011675,2]
[327082361,1715796632570,-150.0,0.00011675,2]
[327082362,1715796632579,-282.25376273,0.00011675,2]
[327082375,1715796638314,-166.58,0.00010722,2]
[327082376,1715796638324,-1364.74623727,0.00011675,2]
[327082377,1715796638334,-1791.633,0.00011675,2]
[327082378,1715796638343,-444.0,0.00011675,2]
[327082379,1715796638352,-3115.267,0.00011675,2]
[327082380,1715796638362,-1138.0,0.00011675,2]
[327082381,1715796638371,-215.0,0.00011675,2]
[327082382,1715796638380,-500.0,0.000117,4]
[327082383,1715796638389,-9389.054855,0.00011742,2]
[327082384,1715796638399,-1312.287751,0.00011742,2]
[327082386,1715796638408,-1314.898262,0.00011742,2]
[327082388,1715796638417,-1300.151164,0.00011742,2]
[327082390,1715796638426,-6630.636577,0.00011742,2]
[327082392,1715796638435,-482.72891,0.00011742,2]
[327082394,1715796638444,-154.42,0.00011788,2]
[327082396,1715796638454,-154.42,0.00011788,2]
[327082398,1715796638463,-500.0,0.00011797,2]
[327082400,1715796638472,-500.0,0.00011797,2]
[327082402,1715796638481,-405.098643,0.00011797,2]
[327082404,1715796638491,-500.0,0.00011797,2]
[327082406,1715796638500,-500.0,0.00011797,2]
[327082408,1715796638509,-500.0,0.00011797,2]
[327082410,1715796638520,-500.0,0.00011797,2]
[327082412,1715796638529,-493.78392436,0.00011797,2]
[327082414,1715796638538,-61635.2157645,0.00011798,2]
[327082416,1715796638550,-393.39810856,0.00011798,2]
[327082419,1715796638569,-994.94207835,0.00011798,2]
[327082435,1715796640099,-677.40969568,0.00010503,2]
[327082436,1715796640110,-370.59030432,0.00011797,2]
[327082437,1715796640122,-129.40969568,0.00011797,2]
[327082438,1715796640131,-500.0,0.00011797,2]
[327082439,1715796640141,-500.0,0.00011797,2]
[327082440,1715796640150,-1305.09030423,0.00011798,2]
[327082441,1715796640162,-750.22031657,0.00011798,2]
[327082444,1715796640174,-1192.48739224,0.00011798,2]
[327082448,1715796640185,-2363.53156,0.00011798,2]
[327082460,1715796640291,-619430.91748225,0.00011798,2]
[327082461,1715796640302,-10000.0,0.00011799,2]
[327082462,1715796640312,-2121.3675,0.000118,2]
[327082463,1715796640322,-1077.2188,0.000118,2]
[327082464,1715796640332,-700.0,0.000118,4]
[327082465,1715796640342,-154.42,0.00011848,2]
[327082466,1715796640351,-288.0,0.00011858,2]
[327082467,1715796640361,-34486.213,0.00011858,2]
[327082468,1715796640370,-5910.0,0.00011858,2]
[327082469,1715796640380,-159.0,0.00011858,2]
[327082470,1715796640389,-3287.7301926,0.00011866,2]
[327082471,1715796640399,-200.0,0.00011868,2]
[327082472,1715796640408,-9527.1412,0.00011876,2]
[327082473,1715796640418,-295.93346635,0.0001188,2]
[327082474,1715796640429,-372.20888085,0.00011883,2]
[327082475,1715796640439,-500.0,0.00011883,2]
[327082476,1715796640448,-9389.054855,0.00011886,2]
[327082477,1715796640457,-1312.287751,0.00011886,2]
[327082478,1715796640466,-1314.898262,0.00011886,2]
[327082479,1715796640485,-1300.151164,0.00011886,2]
[327082480,1715796640498,-6630.636577,0.00011886,2]
[327082481,1715796640508,-482.72891,0.00011886,2]
[327082482,1715796640518,-500.0,0.00011888,2]
[327082483,1715796640528,-508.52,0.00011888,2]
[327082484,1715796640538,-364.34480081,0.00011888,2]
[327082485,1715796640547,-500.0,0.00011898,2]
[327082486,1715796640558,-508.52,0.00011898,2]
[327082487,1715796640568,-168.52457004,0.00011898,2]
[327082488,1715796640577,-200.0,0.00011899,2]
[327082489,1715796640587,-1000.0,0.00011899,2]
[327082490,1715796640597,-500.0,0.00011899,2]
[327082491,1715796640606,-174.76024922,0.00011899,2]
[327082492,1715796640616,-8040.46744908,0.000119,2]
[327082493,1715796640626,-1000.0,0.000119,4]
[327082494,1715796640636,-1670.0,0.000119,2]
[327082495,1715796640645,-500.0,0.00011909,2]
[327082496,1715796640655,-508.52,0.00011909,2]
[327082497,1715796640665,-500.0,0.00011971,2]
[327082498,1715796640674,-508.52,0.00011971,2]
[327082499,1715796640684,-1087.79771715,0.00011972,2]
[327082500,1715796640694,-166.0,0.00011976,2]
[327082501,1715796640703,-150.0,0.00011976,2]
[327082502,1715796640713,-970.257,0.00011976,2]
[327082504,1715796640723,-1394.818,0.00011976,2]
[327082506,1715796640733,-500.0,0.00011979,2]
[327082508,1715796640743,-508.52,0.00011979,2]
[327082510,1715796640753,-842.3999886,0.0001198,2]
[327082513,1715796640763,-296.94679173,0.0001198,2]
[327082516,1715796640773,-155.0,0.0001198,2]
[327082519,1715796640782,-300.246,0.0001198,2]
[327082522,1715796640793,-500.0,0.00011986,2]
[327082524,1715796640802,-508.52,0.00011986,2]
[327082526,1715796640812,-500.0,0.00011987,2]
[327082528,1715796640822,-500.0,0.00011987,2]
[327082531,1715796640831,-500.0,0.00011987,2]
[327082533,1715796640841,-500.0,0.00011987,2]
[327082535,1715796640850,-508.52,0.00011987,2]
[327082537,1715796640860,-508.52,0.00011987,2]
[327082539,1715796640870,-508.52,0.00011987,2]
[327082541,1715796640880,-508.52,0.00011987,2]
[327082543,1715796640890,-500.0,0.00011989,2]
[327082545,1715796640899,-500.0,0.00011989,2]
[327082547,1715796640909,-500.0,0.00011989,2]
[327082548,1715796640919,-500.0,0.00011989,2]
[327082550,1715796640928,-508.52,0.00011989,2]
[327082552,1715796640938,-508.52,0.00011989,2]
[327082555,1715796640947,-508.52,0.00011989,2]
[327082557,1715796640957,-508.52,0.00011989,2]
[327082559,1715796640966,-154.42,0.0001199,2]
[327082561,1715796640976,-154.42,0.0001199,2]
[327082563,1715796640985,-154.42,0.0001199,2]
[327082565,1715796640994,-8040.46744904,0.00011991,2]
[327082567,1715796641006,-500.0,0.00011994,2]
[327082569,1715796641024,-500.0,0.00011994,2]
[327082571,1715796641033,-500.0,0.00011994,2]
[327082573,1715796641043,-500.0,0.00011994,2]
[327082575,1715796641054,-538.48,0.00011994,2]
[327082577,1715796641064,-187.01172638,0.00011994,2]
[327082579,1715796641073,-500.0,0.00011994,2]
[327082581,1715796641084,-500.0,0.00011994,2]
[327082583,1715796641094,-1177.7,0.00011994,2]
[327082586,1715796641107,-500.0,0.00011994,2]
[327082588,1715796641118,-806.97,0.00011994,2]
[327082590,1715796641128,-524.32063829,0.00011994,2]
[327082592,1715796641137,-500.0,0.00011996,2]
[327082594,1715796641148,-529.28539411,0.00011996,2]
[327082596,1715796641157,-30089.2917108,0.00011996,2]
[327082598,1715796641167,-8742.3064746,0.00011996,2]
[327082600,1715796641177,-189.0499352,0.00011997,2]
[327082602,1715796641187,-622.9323276,0.00011997,2]
[327082604,1715796641196,-515.78588726,0.00011997,2]
[327082605,1715796641207,-5260.23733467,0.00011997,2]
[327082606,1715796641216,-162.25388115,0.00011997,2]
[327082607,1715796641226,-158.33975391,0.00011997,2]
[327082608,1715796641236,-1736.06362023,0.00011997,2]
[327082609,1715796641245,-497.39509324,0.00011997,2]
[327082610,1715796641255,-286.07686011,0.00011997,2]
[327082611,1715796641266,-500.0,0.00011997,2]
[327082612,1715796641276,-500.0,0.00011997,2]
[327082613,1715796641287,-670.32,0.00011997,2]
[327082614,1715796641296,-500.0,0.00011997,2]
[327082615,1715796641306,-500.0,0.00011997,2]
[327082616,1715796641316,-2110.12969241,0.00011998,2]
[327082617,1715796641326,-156.95518331,0.00011998,2]
[327082618,1715796641335,-500.0,0.00011998,2]
[327082619,1715796641346,-508.52,0.00011998,2]
[327082620,1715796641356,-500.0,0.00011998,2]
[327082621,1715796641365,-521.8774942,0.00011998,2]
[327082622,1715796641375,-309.3981866,0.00011998,2]
[327082623,1715796641385,-501.18,0.00011998,2]
[327082624,1715796641395,-500.0,0.00011998,2]
[327082625,1715796641404,-500.0,0.00011998,2]
[327082626,1715796641415,-500.0,0.00011998,2]
[327082627,1715796641425,-538.48,0.00011998,2]
[327082628,1715796641434,-538.48,0.00011998,2]
[327082629,1715796641443,-538.48,0.00011998,2]
[327082630,1715796641453,-670.32,0.00011998,2]
[327082631,1715796641462,-670.32,0.00011998,2]
[327082632,1715796641472,-670.32,0.00011998,2]
[327082633,1715796641481,-500.0,0.00011998,2]
[327082634,1715796641491,-477.13,0.00011998,2]
[327082635,1715796641500,-279.84901123,0.00011998,2]
[327082636,1715796641509,-1177.7,0.00011998,2]
[327082637,1715796641520,-1177.7,0.00011998,2]
[327082638,1715796641529,-1177.7,0.00011998,2]
[327082639,1715796641538,-495.30832044,0.00011998,2]
[327082640,1715796641548,-806.97,0.00011998,2]
[327082641,1715796641560,-806.97,0.00011998,2]
[327082642,1715796641570,-806.97,0.00011998,2]
[327082643,1715796641579,-500.0,0.00011998,2]
[327082644,1715796641589,-601.0,0.00011999,2]
[327082645,1715796641598,-282.49599103,0.00011999,2]
[327082646,1715796641608,-3662.9099115,0.00011999,2]
[327082647,1715796641618,-500.0,0.00011999,2]
[327082648,1715796641627,-500.0,0.00011999,2]
[327082649,1715796641636,-500.0,0.00011999,2]
[327082650,1715796641646,-500.0,0.00011999,2]
[327082651,1715796641656,-500.0,0.00011999,2]
[327082652,1715796641666,-500.0,0.00011999,2]
[327082653,1715796641675,-500.0,0.00011999,2]
[327082654,1715796641684,-618.27981778,0.00011999,2]
[327082655,1715796641694,-508.52,0.00011999,2]
[327082656,1715796641703,-508.52,0.00011999,2]
[327082657,1715796641713,-508.52,0.00011999,2]
[327082658,1715796641723,-508.52,0.00011999,2]
[327082659,1715796641732,-508.52,0.00011999,2]
[327082660,1715796641743,-508.52,0.00011999,2]
[327082661,1715796641752,-508.52,0.00011999,2]
[327082662,1715796641762,-508.52,0.00011999,2]
[327082663,1715796641775,-508.58992698,0.00011999,2]
[327082664,1715796641785,-538.48,0.00011999,2]
[327082665,1715796641795,-538.48,0.00011999,2]
[327082666,1715796641804,-538.48,0.00011999,2]
[327082667,1715796641814,-670.32,0.00011999,2]
[327082668,1715796641823,-670.32,0.00011999,2]
[327082669,1715796641833,-670.32,0.00011999,2]
[327082670,1715796641843,-1177.7,0.00011999,2]
[327082671,1715796641853,-1177.7,0.00011999,2]
[327082672,1715796641862,-1177.7,0.00011999,2]
[327082673,1715796641872,-1177.7,0.00011999,2]
[327082674,1715796641882,-806.97,0.00011999,2]
[327082675,1715796641892,-806.97,0.00011999,2]
[327082676,1715796641901,-806.97,0.00011999,2]
[327082677,1715796641910,-806.97,0.00011999,2]
[327082678,1715796641920,-500.0,0.00011999,2]
[327082679,1715796641929,-500.0,0.00011999,2]
[327082680,1715796641938,-500.0,0.00011999,2]
[327082681,1715796641948,-538021.65012117,0.00012,2]
[327082682,1715796641957,-1000.0,0.00012,2]
[327082683,1715796641967,-46087.0,0.00012,2]
[327082684,1715796641976,-68792.0,0.00012,2]
[327082685,1715796641986,-216.0,0.00012,2]
[327082686,1715796641995,-216.0,0.00012,2]
[327082687,1715796642010,-44021.0,0.00012,2]
[327082688,1715796642022,-212.3,0.00012,2]
[327082689,1715796642031,-2100.0,0.00012,2]
[327082690,1715796642040,-410.03425881,0.00012,2]
[327082691,1715796642051,-19623.11442373,0.00012,2]
[327082692,1715796642060,-1000.0,0.00012,2]
[327082693,1715796642069,-200.0,0.00012,2]
[327082694,1715796642079,-600.0,0.00012,2]
[327082695,1715796642089,-3000.0,0.00012,2]
[327082696,1715796642099,-1000.0,0.00012,2]
[327082697,1715796642109,-6640.1108,0.00012,2]
[327082698,1715796642118,-6640.1108,0.00012,2]
[327082699,1715796642128,-300.0,0.00012,2]
[327082700,1715796642139,-223.0,0.00012,2]
[327082701,1715796642149,-1679.9202,0.00012,2]
[327082702,1715796642158,-1679.9202,0.00012,2]
[327082703,1715796642167,-353.0,0.00012,2]
[327082704,1715796642178,-2830.1077,0.00012,2]
[327082705,1715796642187,-2830.1077,0.00012,2]
[327082706,1715796642197,-691.0,0.00012,2]
[327082707,1715796642206,-183749.0,0.00012,2]
[327082708,1715796642216,-333.0,0.00012,2]
[327082709,1715796642225,-2510.2137749,0.00012004,2]